[Event "Bruges Masters 2018"]
[Site "Brugge"]
[Date "2018.08.16"]
[Round "6"]
[White "Lai, Hing Ting"]
[Black "Pel, Bonno"]
[Result "1-0"]
[ECO "E60"]
[WhiteElo "2459"]
[BlackElo "2281"]
[Annotator "ChessBase"]
[PlyCount "91"]
[EventDate "2018.08.12"]
[EventType "swiss"]
[EventCountry "BEL"]
[SourceTitle "playchess.com"]
[Source "ChessBase"]
[SourceQuality "1"]
[TimeControl "5400+30"]

1. Nf3 {[%emt 0:00:00]} g6 {[%emt 0:02:16]} 2. g3 {[%emt 0:00:30]} Bg7 {[%emt 0:00:11]} 3. d4 {[%emt 0:00:10]} d6 {[%emt 0:00:17]} 4. Bg2 {[%emt 0:00:28]} Nf6 {[%emt 0:01:28]} 5. b3 {[%emt 0:01:20]} c5 {[%emt 0:06:51]} 6. c4 {[%emt 0:00:19]} Nc6 {[%emt 0:02:12]} 7. Bb2 {[%emt 0:00:37]} Qa5+ {[%emt 0:05:38]} 8. Bc3 {[%emt 0:00:32]} Qc7 {[%emt 0:00:30]} 9. Nbd2 {[%emt 0:02:32]} cxd4 {[%emt 0:10:04]} 10. Nxd4 {[%emt 0:00:20]} Nxd4 {[%emt 0:00:35]} 11. Bxd4 {[%emt 0:00:13]} O-O {[%emt 0:00:10]} 12. O-O {[%emt 0:01:23]} Bd7 {[%emt 0:00:28]} 13. Rc1 {[%emt 0:03:02]} Bc6 {[%emt 0:06:22]} 14. e4 {[%emt 0:00:30]} Nd7 {[%emt 0:01:22]} 15. Be3 {[%emt 0:01:31]} Qa5 {[%emt 0:05:15]} 16. Qc2 {[%emt 0:02:16]} Rfc8 {[%emt 0:01:38]} 17. Nf3 {[%emt 0:04:18]} Nc5 {[%emt 0:05:05]} 18. Nd4 {[%emt 0:00:34]} Bd7 {[%emt 0:00:18]} 19. Qe2 {[%emt 0:03:21]} a6 {[%emt 0:02:27]} 20. Rc2 {[%emt 0:01:38]} b5 {[%emt 0:05:31]} 21. Rb1 {[%emt 0:03:25]} Qd8 {[%emt 0:12:33]} 22. Qd2 {[%emt 0:02:59]} Rab8 {[%emt 0:02:16]} 23. cxb5 {[%emt 0:02:12]} axb5 {[%emt 0:00:10]} 24. Rbc1 {[%emt 0:00:18]} b4 {[%emt 0:01:33]} 25. Ne2 {[%emt 0:01:58]} Bb5 {[%emt 0:03:31]} 26. Nf4 {[%emt 0:01:09]} Bc3 {[%emt 0:01:03]} 27. Qd1 {[%emt 0:00:12]} Bc6 {[%emt 0:03:50]} 28. f3 {[%emt 0:05:53]} Bb5 {[%emt 0:04:36]} 29. Nd5 {[%emt 0:04:20]} Nd3 {[%emt 0:01:57]} 30. Rb1 {[%emt 0:00:30]} e6 {[%emt 0:01:47]} 31. Nxc3 {[%emt 0:00:25]} bxc3 {[%emt 0:00:13]} 32. a4 {[%emt 0:05:02]} Ba6 {[%emt 0:01:36]} 33. Bf1 {[%emt 0:00:48]} Nb2 {[%emt 0:00:45]} 34. Rcxb2 {[%emt 0:02:42]} Bxf1 {[%emt 0:01:21]} 35. Rc2 {[%emt 0:00:01]} Ba6 {[%emt 0:01:08]} 36. b4 {[%emt 0:02:38]} f5 {[%emt 0:00:27]} 37. exf5 {[%emt 0:01:35]} gxf5 {[%emt 0:00:07]} 38. Bd4 {[%emt 0:02:33]} Qg5 {[%emt 0:03:17]} 39. b5 {[%emt 0:01:40]} Bb7 {[%emt 0:00:20]} 40. Qe2 {[%emt 0:01:06]} Bd5 {[%emt 0:01:27]} 41. Rxc3 {[%emt 0:01:52]} Rxc3 {[%emt 0:00:55]} 42. Bxc3 {[%emt 0:00:01]} f4 {[%emt 0:00:11]} 43. Rb4 {[%emt 0:00:51]} Rf8 {[%emt 0:03:27]} 44. Qd3 {[%emt 0:06:06]} Qh5 {[%emt 0:01:38]} 45. Qd4 {[%emt 0:00:48]} Qg5 {[%emt 0:00:56]} 46. Qh8+ {[%emt 0:00:18]} 1-0

[Event "Bruges Masters 2018"]
[Site "Brugge"]
[Date "2018.08.16"]
[Round "6"]
[White "Geirnaert, Steven"]
[Black "Dardha, Daniel"]
[Result "1-0"]
[ECO "B32"]
[WhiteElo "2427"]
[BlackElo "2302"]
[Annotator "ChessBase"]
[PlyCount "55"]
[EventDate "2018.08.12"]
[EventType "swiss"]
[EventCountry "BEL"]
[SourceTitle "playchess.com"]
[Source "ChessBase"]
[SourceQuality "1"]
[TimeControl "5400+30"]

1. e4 {[%emt 0:00:00]} c5 {[%emt 0:00:00]} 2. Nf3 {[%emt 1:31:00]} Nc6 {[%emt 0:01:16]} 3. d4 {[%emt 0:00:00]} cxd4 {[%emt 0:00:10]} 4. Nxd4 {[%emt 0:00:00]} e5 {[%emt 0:00:43]} 5. Nb5 {[%emt 0:00:00]} d6 {[%emt 0:00:07]} 6. c4 {[%emt 0:00:00]} Be7 {[%emt 0:00:06]} 7. Bd3 {[%emt 0:00:00]} Be6 {[%emt 0:00:59]} 8. O-O {[%emt 0:00:00]} a6 {[%emt 0:03:38]} 9. N5c3 {[%emt 0:00:00]} Bg5 {[%emt 0:00:08]} 10. Nd2 {[%emt 0:00:00]} Nf6 {[%emt 0:00:09]} 11. b3 {[%emt 0:00:00]} O-O {[%emt 0:00:27]} 12. Bb2 {[%emt 0:00:00]} Nd4 {[%emt 0:03:39]} 13. Nd5 {[%emt 0:00:00]} Nxd5 {[%emt 0:14:10]} 14. exd5 {[%emt 0:00:00]} Bf5 {[%emt 0:00:17]} 15. Bxf5 {[%emt 0:00:00]} Nxf5 {[%emt 0:01:01]} 16. Ne4 {[%emt 0:00:00]} Be7 {[%emt 0:00:44]} 17. a4 {[%emt 0:00:00]} b5 {[%emt 0:11:20]} 18. c5 {[%emt 0:00:00]} dxc5 {[%emt 0:02:48]} 19. Bxe5 {[%emt 0:08:30]} f6 {[%emt 0:10:07]} 20. Bf4 {[%emt 0:00:00]} Rf7 {[%emt 0:07:16]} 21. d6 {[%emt 0:00:00]} Bf8 {[%emt 0:00:09]} 22. axb5 {[%emt 0:00:00]} axb5 {[%emt 0:01:33]} 23. Qd5 {[%emt 0:00:00]} Rxa1 {[%emt 0:00:38]} 24. Rxa1 {[%emt 0:00:00]} Nd4 {[%emt 0:01:44]} 25. Ra7 {[%emt 0:00:00]} Qe8 {[%emt 0:03:09]} 26. d7 {[%emt 0:00:00]} Qd8 {[%emt 0:07:13]} 27. Nd6 {[%emt 0:00:00]} Bxd6 {[%emt 0:01:38]} 28. Bxd6 {[%emt 0:00:00]} 1-0

[Event "Bruges Masters 2018"]
[Site "Brugge"]
[Date "2018.08.16"]
[Round "6"]
[White "Chernov, Vadim"]
[Black "Larsen, Sander"]
[Result "1/2-1/2"]
[ECO "C00"]
[WhiteElo "2412"]
[BlackElo "1929"]
[Annotator "ChessBase"]
[PlyCount "157"]
[EventDate "2018.08.12"]
[EventType "swiss"]
[EventCountry "BEL"]
[SourceTitle "playchess.com"]
[Source "ChessBase"]
[SourceQuality "1"]
[TimeControl "5400+30"]

1. e4 {[%emt 0:00:00]} c5 {[%emt 0:00:00]} 2. Nf3 {[%emt 0:00:00]} e6 {[%emt 0:00:00]} 3. g3 {[%emt 0:00:00]} Nc6 {[%emt 0:00:00]} 4. Bg2 {[%emt 0:00:00]} Nf6 {[%emt 0:02:17]} 5. Qe2 {[%emt 0:00:00]} Be7 {[%emt 0:05:51]} 6. e5 {[%emt 0:00:40]} Nd5 {[%emt 0:01:02]} 7. c4 {[%emt 0:00:08]} Ndb4 {[%emt 0:00:45]} 8. d3 {[%emt 0:00:15]} d6 {[%emt 0:01:43]} 9. a3 {[%emt 0:00:33]} Na6 {[%emt 0:00:03]} 10. exd6 {[%emt 0:00:22]} Qxd6 {[%emt 0:01:59]} 11. Nc3 {[%emt 0:00:31]} Nc7 {[%emt 0:02:21]} 12. Bf4 {[%emt 0:04:58]} Qd8 {[%emt 0:01:10]} 13. O-O {[%emt 0:00:17]} O-O {[%emt 0:00:29]} 14. Rad1 {[%emt 0:02:15]} f6 {[%emt 0:02:47]} 15. Bxc7 {[%emt 0:00:45]} Qxc7 {[%emt 0:00:09]} 16. d4 {[%emt 0:00:08]} Nxd4 {[%emt 0:04:31]} 17. Nxd4 {[%emt 0:00:11]} cxd4 {[%emt 0:00:04]} 18. Rxd4 {[%emt 0:00:35]} a6 {[%emt 0:17:25]} 19. Rfd1 {[%emt 0:01:39]} f5 {[%emt 0:02:53]} 20. Bd5 {[%emt 0:06:58]} Bf6 {[%emt 0:02:53]} 21. Bxe6+ {[%emt 0:00:25]} Bxe6 {[%emt 0:00:05]} 22. Qxe6+ {[%emt 0:00:07]} Qf7 {[%emt 0:00:05]} 23. Qxf7+ {[%emt 0:00:28]} Rxf7 {[%emt 0:00:03]} 24. Rd5 {[%emt 0:06:54]} Rc8 {[%emt 0:10:26]} 25. c5 {[%emt 0:02:54]} Bxc3 {[%emt 0:01:26]} 26. bxc3 {[%emt 0:00:01]} Rfc7 {[%emt 0:06:24]} 27. Rxf5 {[%emt 0:01:24]} g6 {[%emt 0:06:41]} 28. Rf3 {[%emt 0:02:49]} Rxc5 {[%emt 0:00:15]} 29. Rd7 {[%emt 0:01:43]} R5c7 {[%emt 0:00:07]} 30. Rdd3 {[%emt 0:00:15]} b5 {[%emt 0:05:14]} 31. h4 {[%emt 0:02:16]} a5 {[%emt 0:00:52]} 32. Kg2 {[%emt 0:00:44]} Rb8 {[%emt 0:02:56]} 33. h5 {[%emt 0:02:00]} gxh5 {[%emt 0:04:18]} 34. Rf5 {[%emt 0:00:51]} h4 {[%emt 0:03:59]} 35. gxh4 {[%emt 0:00:24]} b4 {[%emt 0:00:39]} 36. cxb4 {[%emt 0:02:33]} axb4 {[%emt 0:00:01]} 37. Rb3 {[%emt 0:07:46]} Rc3 {[%emt 0:05:42]} 38. Rxb4 {[%emt 0:55:11]} Rxb4 {[%emt 0:11:25]} 39. axb4 {[%emt 0:00:00]} Rc4 {[%emt 0:00:00]} 40. b5 {[%emt 0:00:00]} Rxh4 {[%emt 0:00:00]} 41. f4 {[%emt 0:00:00]} Rh6 {[%emt 0:00:00]} 42. Kf3 {[%emt 0:00:00]} Rh1 {[%emt 0:00:00]} 43. Ke4 {[%emt 0:00:00]} h5 {[%emt 0:00:00]} 44. Kd3 {[%emt 0:00:00]} h4 {[%emt 0:00:01]} 45. Kc2 {[%emt 0:00:00]} Rh2+ {[%emt 0:00:02]} 46. Kc3 {[%emt 0:00:00]} h3 {[%emt 0:01:21]} 47. Rh5 {[%emt 0:00:00]} Rh1 {[%emt 0:00:18]} 48. Kb2 {[%emt 0:00:00]} Rh2+ {[%emt 0:00:02]} 49. Kc3 {[%emt 0:00:00]} Rh1 {[%emt 0:00:01]} 50. Kc2 {[%emt 0:00:00]} Rh2+ {[%emt 0:00:12]} 51. Kd3 {[%emt 0:00:00]} Rh1 {[%emt 0:00:55]} 52. Ke4 {[%emt 0:00:00]} Rb1 {[%emt 0:01:41]} 53. Rxh3 {[%emt 0:00:00]} Rxb5 {[%emt 0:00:02]} 54. Rh6 {[%emt 0:00:00]} Kg7 {[%emt 0:00:19]} 55. Ra6 {[%emt 0:00:00]} Kf7 {[%emt 0:00:25]} 56. Rh6 {[%emt 0:00:00]} Rb4+ {[%emt 0:00:23]} 57. Kf5 {[%emt 0:00:00]} Rb5+ {[%emt 0:00:04]} 58. Kg4 {[%emt 0:00:00]} Rb1 {[%emt 0:00:38]} 59. Kg5 {[%emt 0:00:00]} Rb5+ {[%emt 0:01:57]} 60. f5 {[%emt 0:00:00]} Kg7 {[%emt 0:00:38]} 61. Rg6+ {[%emt 0:00:00]} Kf7 {[%emt 0:00:12]} 62. Ra6 {[%emt 0:00:00]} Rb7 {[%emt 0:00:20]} 63. Rh6 {[%emt 0:00:00]} Rb5 {[%emt 0:01:46]} 64. Rh7+ {[%emt 0:00:00]} Kg8 {[%emt 0:00:19]} 65. Re7 {[%emt 0:00:00]} Rb6 {[%emt 0:01:05]} 66. Re6 {[%emt 0:00:00]} Rb7 {[%emt 0:00:28]} 67. Kf6 {[%emt 0:00:00]} Rf7+ {[%emt 0:00:30]} 68. Ke5 {[%emt 0:00:00]} Ra7 {[%emt 0:00:08]} 69. Kf6 {[%emt 0:00:00]} Rf7+ {[%emt 0:00:03]} 70. Kg5 {[%emt 0:00:00]} Rb7 {[%emt 0:00:40]} 71. Rc6 {[%emt 0:00:00]} Kf7 {[%emt 0:00:28]} 72. Rh6 {[%emt 0:00:00]} Rb5 {[%emt 0:00:51]} 73. Rh8 {[%emt 0:00:00]} Kg7 {[%emt 0:00:39]} 74. Ra8 {[%emt 0:00:00]} Rb7 {[%emt 0:00:12]} 75. Ra5 {[%emt 0:00:00]} Rc7 {[%emt 0:01:00]} 76. f6+ {[%emt 0:00:00]} Kf7 {[%emt 0:00:14]} 77. Kf5 {[%emt 0:00:00]} Rb7 {[%emt 0:00:06]} 78. Ke5 {[%emt 0:00:00]} Rc7 {[%emt 0:00:19]} 79. Ke4 {[%emt 0:20:30]} 1/2-1/2

[Event "Bruges Masters 2018"]
[Site "Brugge"]
[Date "2018.08.16"]
[Round "6"]
[White "De Bock, Thijs"]
[Black "Van Foreest, Lucas"]
[Result "0-1"]
[ECO "C65"]
[WhiteElo "1959"]
[BlackElo "2488"]
[Annotator "ChessBase"]
[PlyCount "52"]
[EventDate "2018.08.12"]
[EventType "swiss"]
[EventCountry "BEL"]
[SourceTitle "playchess.com"]
[Source "ChessBase"]
[SourceQuality "1"]
[TimeControl "5400+30"]

1. e4 {[%emt 0:00:00]} e5 {[%emt 0:10:02]} 2. Nf3 {[%emt 0:00:00]} Nc6 {[%emt 0:00:00]} 3. Bb5 {[%emt 0:00:00]} Nf6 {[%emt 0:00:01]} 4. d3 {[%emt 0:00:00]} Bc5 {[%emt 0:00:03]} 5. c3 {[%emt 0:00:30]} d5 {[%emt 0:00:27]} 6. Nxe5 {[%emt 0:04:11]} O-O {[%emt 0:00:21]} 7. Nxc6 {[%emt 0:01:53]} bxc6 {[%emt 0:00:03]} 8. Bxc6 {[%emt 0:00:24]} Bxf2+ {[%emt 0:00:01]} 9. Kxf2 {[%emt 0:01:49]} Ng4+ {[%emt 0:00:02]} 10. Kf1 {[%emt 0:05:06]} Qf6+ {[%emt 0:02:19]} 11. Qf3 {[%emt 0:00:04]} Qxc6 {[%emt 0:00:12]} 12. exd5 {[%emt 0:01:41]} Qg6 {[%emt 0:02:55]} 13. Na3 {[%emt 0:08:37]} Rb8 {[%emt 0:17:47]} 14. d4 {[%emt 0:05:37]} Re8 {[%emt 0:01:46]} 15. h3 {[%emt 0:02:19]} Nf6 {[%emt 0:00:13]} 16. Kg1 {[%emt 0:12:27]} Nh5 {[%emt 0:11:46]} 17. Nc4 {[%emt 0:05:03]} Qg3 {[%emt 0:19:07]} 18. Ne5 {[%emt 0:10:53]} Qxf3 {[%emt 0:00:06]} 19. gxf3 {[%emt 0:00:23]} Ba6 {[%emt 0:00:54]} 20. f4 {[%emt 0:12:26]} f6 {[%emt 0:04:09]} 21. Nc6 {[%emt 0:02:00]} Re1+ {[%emt 0:01:09]} 22. Kg2 {[%emt 0:00:02]} Re2+ {[%emt 0:00:33]} 23. Kf3 {[%emt 0:00:31]} Rbe8 {[%emt 0:00:01]} 24. b3 {[%emt 0:00:51]} Bd3 {[%emt 0:01:46]} 25. Rg1 {[%emt 0:05:55]} Rh2 {[%emt 0:00:44]} 26. Ba3 {[%emt 0:00:50]} Be2# {[%emt 0:26:33]} 0-1

[Event "Bruges Masters 2018"]
[Site "Brugge"]
[Date "2018.08.16"]
[Round "6"]
[White "Todts, Benny"]
[Black "Koziak, Vitali"]
[Result "0-1"]
[ECO "B80"]
[WhiteElo "1938"]
[BlackElo "2476"]
[Annotator "ChessBase"]
[PlyCount "46"]
[EventDate "2018.08.12"]
[EventType "swiss"]
[EventCountry "BEL"]
[SourceTitle "playchess.com"]
[Source "ChessBase"]
[SourceQuality "1"]
[TimeControl "5400+30"]

1. e4 {[%emt 0:00:00]} c5 {[%emt 0:01:29]} 2. d4 {[%emt 0:00:22]} cxd4 {[%emt 0:00:19]} 3. Nf3 {[%emt 0:00:05]} d6 {[%emt 0:03:26]} 4. Nxd4 {[%emt 0:00:12]} Nf6 {[%emt 0:00:08]} 5. Nc3 {[%emt 0:00:11]} e6 {[%emt 0:00:23]} 6. Be3 {[%emt 0:00:24]} a6 {[%emt 0:00:43]} 7. Qd2 {[%emt 0:01:39]} b5 {[%emt 0:01:18]} 8. f3 {[%emt 0:03:20]} Nbd7 {[%emt 0:04:22]} 9. g4 {[%emt 0:04:01]} Nb6 {[%emt 0:02:42]} 10. g5 {[%emt 0:09:49]} Nfd7 {[%emt 0:00:59]} 11. f4 {[%emt 0:05:40]} b4 {[%emt 0:06:03]} 12. Nd1 {[%emt 0:00:54]} Bb7 {[%emt 0:04:13]} 13. Nf2 {[%emt 0:02:28]} d5 {[%emt 0:01:57]} 14. Rg1 {[%emt 0:14:55]} dxe4 {[%emt 0:09:02]} 15. f5 {[%emt 0:06:19]} exf5 {[%emt 0:08:15]} 16. Nxf5 {[%emt 0:00:43]} Ne5 {[%emt 0:00:57]} 17. O-O-O {[%emt 0:11:34]} Qxd2+ {[%emt 0:05:43]} 18. Rxd2 {[%emt 0:01:38]} Nbc4 {[%emt 0:09:52]} 19. Bxc4 {[%emt 0:04:41]} Nxc4 {[%emt 0:01:27]} 20. Re2 {[%emt 0:04:01]} O-O-O {[%emt 0:05:08]} 21. Bd4 {[%emt 0:01:37]} Rd5 {[%emt 0:02:35]} 22. Bxg7 {[%emt 0:10:01]} Rxf5 {[%emt 0:01:03]} 23. Bxh8 {[%emt 0:01:29]} Bc5 {[%emt 0:00:09]} 0-1

[Event "Bruges Masters 2018"]
[Site "Brugge"]
[Date "2018.08.16"]
[Round "6"]
[White "Follesa, Enrico"]
[Black "Ouaki, Mark"]
[Result "0-1"]
[ECO "C45"]
[WhiteElo "1856"]
[BlackElo "1592"]
[Annotator "NA"]
[PlyCount "118"]
[EventDate "2018.08.12"]
[EventType "swiss"]
[EventCountry "BEL"]
[SourceTitle "playchess.com"]
[Source "ChessBase"]
[SourceQuality "1"]
[TimeControl "5400+30"]

1. e4 {[%emt 0:00:00]} e5 {[%emt 0:00:00]} 2. Nf3 {[%emt 0:00:00]} Nc6 {[%emt 0:00:00]} 3. d4 {[%emt 0:00:00]} exd4 {[%emt 0:00:08]} 4. Nxd4 {[%emt 0:00:00]} d6 {[%emt 0:01:53]} 5. Be3 {[%emt 0:00:13]} Bd7 {[%emt 0:03:17]} 6. Nc3 {[%emt 0:00:15]} Ne5 {[%emt 0:03:08]} 7. h3 {[%emt 0:05:26]} Be7 {[%emt 0:01:55]} 8. g3 {[%emt 0:00:44]} a6 {[%emt 0:01:23]} 9. f4 {[%emt 0:00:30]} Nc6 {[%emt 0:00:07]} 10. Bg2 {[%emt 0:02:48]} Bf6 {[%emt 0:04:18]} 11. O-O {[%emt 0:01:13]} Nge7 {[%emt 0:02:28]} 12. Qd3 {[%emt 0:05:53]} Bxd4 {[%emt 0:05:19]} 13. Bxd4 {[%emt 0:00:02]} Nxd4 {[%emt 0:00:11]} 14. Qxd4 {[%emt 0:00:08]} O-O {[%emt 0:00:07]} 15. Rae1 {[%emt 0:01:57]} Bc6 {[%emt 0:02:42]} 16. f5 {[%emt 0:02:17]} Re8 {[%emt 0:03:32]} 17. f6 {[%emt 0:00:22]} Ng6 {[%emt 0:00:10]} 18. Nd5 {[%emt 0:04:20]} Bxd5 {[%emt 0:02:12]} 19. Qxd5 {[%emt 0:02:29]} c6 {[%emt 0:04:42]} 20. Qb3 {[%emt 0:04:49]} Qc7 {[%emt 0:10:29]} 21. Rf2 {[%emt 0:05:29]} Ne5 {[%emt 0:04:01]} 22. Ref1 {[%emt 0:02:45]} Re6 {[%emt 0:01:46]} 23. fxg7 {[%emt 0:02:21]} Rg6 {[%emt 0:00:28]} 24. Kh2 {[%emt 0:04:32]} Qe7 {[%emt 0:05:12]} 25. Rf5 {[%emt 0:04:07]} Rxg7 {[%emt 0:03:19]} 26. R1f2 {[%emt 0:03:19]} Kh8 {[%emt 0:05:53]} 27. R2f4 {[%emt 0:09:56]} Rag8 {[%emt 0:01:24]} 28. g4 {[%emt 0:01:41]} c5 {[%emt 0:10:25]} 29. a4 {[%emt 0:07:04]} Qh4 {[%emt 0:03:27]} 30. Kg1 {[%emt 0:08:00]} Qe7 {[%emt 0:03:21]} 31. Qc3 {[%emt 0:00:53]} Ng6 {[%emt 0:01:19]} 32. Rxf7 {[%emt 0:00:16]} Nxf4 {[%emt 0:00:43]} 33. Rxe7 {[%emt 0:00:05]} Ne2+ {[%emt 0:00:10]} 34. Kf2 {[%emt 0:00:24]} Nxc3 {[%emt 0:00:09]} 35. Rxg7 {[%emt 0:00:08]} Nxe4+ {[%emt 0:00:26]} 36. Bxe4 {[%emt 0:00:03]} Rxg7 {[%emt 0:00:10]} 37. b3 {[%emt 0:00:45]} Re7 {[%emt 0:00:12]} 38. Kf3 {[%emt 0:00:12]} b5 {[%emt 0:00:37]} 39. axb5 {[%emt 0:00:11]} axb5 {[%emt 0:00:07]} 40. h4 {[%emt 0:00:14]} h6 {[%emt 0:01:04]} 41. h5 {[%emt 0:00:28]} Kg7 {[%emt 0:00:18]} 42. Kf4 {[%emt 0:00:18]} Kf6 {[%emt 0:00:22]} 43. Bf5 {[%emt 0:00:22]} c4 {[%emt 0:01:27]} 44. bxc4 {[%emt 0:00:18]} bxc4 {[%emt 0:00:08]} 45. Kg3 {[%emt 0:00:22]} d5 {[%emt 0:00:40]} 46. Kf4 {[%emt 0:00:15]} d4 {[%emt 0:00:19]} 47. Bg6 {[%emt 0:00:44]} Re1 {[%emt 0:01:22]} 48. Bf5 {[%emt 0:00:13]} Rf1+ {[%emt 0:02:19]} 49. Ke4 {[%emt 0:00:08]} Rd1 {[%emt 0:00:19]} 50. Kd5 {[%emt 0:00:12]} c3 {[%emt 0:00:43]} 51. Kc4 {[%emt 0:00:44]} Kg5 {[%emt 0:00:49]} 52. Kb4 {[%emt 0:00:09]} Rd2 {[%emt 0:00:53]} 53. Kc4 {[%emt 0:00:17]} Kf4 {[%emt 0:01:00]} 54. Kb4 {[%emt 0:00:50]} Ke3 {[%emt 0:00:28]} 55. Kb3 {[%emt 0:00:07]} d3 {[%emt 0:02:20]} 56. cxd3 {[%emt 0:04:04]} Kd4 {[%emt 0:00:25]} 57. Be6 {[%emt 0:02:50]} Rb2+ {[%emt 0:00:17]} 58. Ka3 {[%emt 0:00:24]} Rb6 {[%emt 0:00:22]} 59. Bb3 {[%emt 0:00:28]} Kxd3 {[%emt 0:00:11]} 0-1

[Event "Bruges Masters 2018"]
[Site "Brugge"]
[Date "2018.08.16"]
[Round "7"]
[White "Turner, Matthew J"]
[Black "Shyaamnikhil P"]
[Result "1-0"]
[ECO "A04"]
[WhiteElo "2533"]
[BlackElo "2389"]
[Annotator "ChessBase"]
[PlyCount "85"]
[EventDate "2018.08.12"]
[EventType "swiss"]
[EventCountry "BEL"]
[SourceTitle "playchess.com"]
[Source "ChessBase"]
[SourceQuality "1"]
[TimeControl "5400+30"]

1. Nf3 {[%emt 0:00:00]} c5 {[%emt 0:02:20]} 2. g3 {[%emt 0:00:53]} g6 {[%emt 0:00:36]} 3. Bg2 {[%emt 0:00:27]} Bg7 {[%emt 0:00:10]} 4. O-O {[%emt 0:00:30]} Nc6 {[%emt 0:00:24]} 5. c3 {[%emt 0:00:21]} e5 {[%emt 0:09:05]} 6. e4 {[%emt 0:01:32]} Nge7 {[%emt 0:00:10]} 7. d3 {[%emt 0:00:42]} O-O {[%emt 0:04:14]} 8. a3 {[%emt 0:00:21]} a5 {[%emt 0:04:29]} 9. a4 {[%emt 0:00:57]} h6 {[%emt 0:02:30]} 10. Na3 {[%emt 0:00:39]} d6 {[%emt 0:00:22]} 11. Nd2 {[%emt 0:02:01]} Be6 {[%emt 0:00:54]} 12. Nb5 {[%emt 0:01:22]} Kh7 {[%emt 0:00:55]} 13. Nc4 {[%emt 0:00:25]} d5 {[%emt 0:01:11]} 14. exd5 {[%emt 0:00:48]} Bxd5 {[%emt 0:00:06]} 15. Bxd5 {[%emt 0:03:21]} Nxd5 {[%emt 0:00:08]} 16. Qf3 {[%emt 0:02:29]} Qd7 {[%emt 0:05:28]} 17. Nbd6 {[%emt 0:02:43]} Nce7 {[%emt 0:02:22]} 18. Re1 {[%emt 0:06:28]} f6 {[%emt 0:06:46]} 19. Bd2 {[%emt 0:02:03]} Rfd8 {[%emt 0:04:09]} 20. Rad1 {[%emt 0:05:48]} Ra6 {[%emt 0:02:47]} 21. Nb5 {[%emt 0:01:09]} Qc6 {[%emt 0:06:13]} 22. Qe4 {[%emt 0:03:45]} Rd7 {[%emt 0:02:44]} 23. b3 {[%emt 0:02:31]} Nf5 {[%emt 0:05:31]} 24. Bc1 {[%emt 0:05:56]} h5 {[%emt 0:00:42]} 25. Bb2 {[%emt 0:01:36]} Ra8 {[%emt 0:01:23]} 26. h3 {[%emt 0:02:13]} Kg8 {[%emt 0:06:10]} 27. d4 {[%emt 0:04:09]} exd4 {[%emt 0:00:31]} 28. cxd4 {[%emt 0:00:08]} Re7 {[%emt 0:01:57]} 29. Qf3 {[%emt 0:00:27]} Nb4 {[%emt 0:02:57]} 30. Qxc6 {[%emt 0:08:45]} Rxe1+ {[%emt 0:02:20]} 31. Rxe1 {[%emt 0:00:05]} bxc6 {[%emt 0:00:04]} 32. dxc5 {[%emt 0:00:20]} cxb5 {[%emt 0:02:51]} 33. axb5 {[%emt 0:00:11]} Rb8 {[%emt 0:06:52]} 34. c6 {[%emt 0:00:57]} Nd5 {[%emt 0:01:44]} 35. b6 {[%emt 0:02:34]} Nxb6 {[%emt 0:00:10]} 36. Nxb6 {[%emt 0:01:00]} Rxb6 {[%emt 0:00:33]} 37. c7 {[%emt 0:00:09]} Nd6 {[%emt 0:00:27]} 38. Ba3 {[%emt 0:00:19]} Nc8 {[%emt 0:03:12]} 39. Re8+ {[%emt 0:00:16]} Kf7 {[%emt 0:00:05]} 40. Rxc8 {[%emt 0:00:03]} Rc6 {[%emt 0:00:03]} 41. b4 {[%emt 0:03:40]} axb4 {[%emt 0:00:30]} 42. Bxb4 {[%emt 0:00:04]} f5 {[%emt 0:04:05]} 43. Ba5 {[%emt 0:00:11]} 1-0

[Event "Bruges Masters 2018"]
[Site "Brugge"]
[Date "2018.08.16"]
[Round "7"]
[White "Korneev, Oleg"]
[Black "Wan, Yunguo"]
[Result "1-0"]
[ECO "A48"]
[WhiteElo "2513"]
[BlackElo "2501"]
[Annotator "ChessBase"]
[PlyCount "57"]
[EventDate "2018.08.12"]
[EventType "swiss"]
[EventCountry "BEL"]
[SourceTitle "playchess.com"]
[Source "ChessBase"]
[SourceQuality "1"]
[TimeControl "5400+30"]

1. d4 {[%emt 0:08:49]} Nf6 {[%emt 0:01:50]} 2. Nf3 {[%emt 0:02:55]} g6 {[%emt 0:00:43]} 3. Bf4 {[%emt 0:00:07]} Bg7 {[%emt 0:01:27]} 4. e3 {[%emt 0:00:39]} c5 {[%emt 0:02:28]} 5. c3 {[%emt 0:00:19]} O-O {[%emt 0:00:37]} 6. Be2 {[%emt 0:00:03]} cxd4 {[%emt 0:01:23]} 7. exd4 {[%emt 0:01:12]} d6 {[%emt 0:01:48]} 8. h3 {[%emt 0:00:47]} Nc6 {[%emt 0:01:12]} 9. O-O {[%emt 0:00:37]} Nd5 {[%emt 0:03:52]} 10. Bh2 {[%emt 0:00:58]} e5 {[%emt 0:00:21]} 11. c4 {[%emt 0:18:16]} Nb6 {[%emt 0:11:35]} 12. d5 {[%emt 0:16:17]} Nb8 {[%emt 0:18:27]} 13. Nc3 {[%emt 0:00:39]} N8d7 {[%emt 0:00:44]} 14. a3 {[%emt 0:05:12]} Qe7 {[%emt 0:06:04]} 15. Re1 {[%emt 0:06:16]} a5 {[%emt 0:11:26]} 16. b3 {[%emt 0:04:19]} f5 {[%emt 0:02:35]} 17. Bf1 {[%emt 0:00:38]} Qf6 {[%emt 0:13:37]} 18. Nb5 {[%emt 0:00:47]} Nc5 {[%emt 0:00:23]} 19. b4 {[%emt 0:09:12]} axb4 {[%emt 0:04:41]} 20. axb4 {[%emt 0:00:29]} Rxa1 {[%emt 0:00:19]} 21. Qxa1 {[%emt 0:00:02]} Na6 {[%emt 0:00:24]} 22. c5 {[%emt 0:13:18]} Nxd5 {[%emt 0:06:58]} 23. Nxd6 {[%emt 0:00:21]} Naxb4 {[%emt 0:04:36]} 24. Bxe5 {[%emt 0:00:18]} Qe7 {[%emt 0:00:04]} 25. Bc4 {[%emt 0:00:39]} Kh8 {[%emt 0:03:53]} 26. Bd4 {[%emt 0:04:12]} Bxd4 {[%emt 0:00:52]} 27. Nxd4 {[%emt 0:00:41]} Qf6 {[%emt 0:00:36]} 28. Ne8 {[%emt 0:00:12]} Nc2 {[%emt 0:00:34]} 29. Nxf6 {[%emt 0:00:22]} 1-0